Cogmind - Beta 12 @@@ ROGUE MODE // 2023.03.22 @ 03:49:29 // Winter2019/RPGLIKE Player: Rainynight Result: Core destroyed Performance ------------- Evolutions (3) 1500 Regions Visited (8) 1600 Robots Destroyed (198) 990 Value Destroyed (6727) 6727 Prototype IDs (29) 580 Alien Tech Used (0) 0 Bonus (3527) 3527 TOTAL SCORE: 14924 Bonus ------- Triggered High Security 500 High Alert Combat Kills 2615 Follower Combat Kills 140 Entered Garrisons 200 Used RIF Installer 500 Aligned with FarCom 300 Friendly Fire -728 Cogmind --------- Core Integrity 0/950 Matter 124/300 Energy 216/510 System Corruption 0% Temperature Critical (1984) Movement Treading (232) Ox1 Location -7/Factory Parts ------- > --- POWER (2) -------- Heavy Deuterium Engine Enhanced Nuclear Core > --- PROPULSION (6) --- Advanced Treads Medium Treads Armored Huge Wheel Armored Huge Wheel > --- UTILITY (6) ------ Improved Cooling System Improved Terrain Scanner Core Analyzer Improved Medium Armor Plating Trap Reconfigurator > --- WEAPON (4) ------- Firepult Advanced Assault Cannon Chainsword > --- INVENTORY (2) ---- Heavy Deuterium Engine High-capacity Matter Pod (200) Peak State ------------ > --- POWER ------------ Heavy Deuterium Engine Enhanced Nuclear Core > --- PROPULSION ------- Advanced Treads Medium Treads Armored Huge Wheel Armored Huge Wheel > --- UTILITY ---------- Improved Heat Sink Improved Cooling System Improved Terrain Scanner Core Analyzer Improved Medium Armor Plating Trap Reconfigurator > --- WEAPON ----------- Firepult Advanced Assault Cannon Chainsword > --- INVENTORY -------- Heavy Deuterium Engine High-capacity Matter Pod [Rating: 88] Favorites ----------- Power Heavy Deuterium Engine Engine Heavy Deuterium Engine Power Core Enhanced Nuclear Core Propulsion Armored Wheel Treads Armored Treads Wheel Armored Wheel Utility Heat Sink Device Heat Sink Storage Large Matter Pod Processor Improved Targeting Computer Protection Improved Light Armor Plating Weapon Firepult Energy Gun Medium Laser Energy Cannon Firepult Ballistic Gun Gauss Rifle Ballistic Cannon Gauss Cannon Launcher Concussive RPG Slashing Weapon Scythe Build | -11 -10 -10 -10 -9 -8 -7 -7 -7 ------- Run | Jun Mat Min Exi Min Mat Fac Gar Fac Slots Evolved 14 | 4 2 1 . . 3 3 1 . Power 1 | . . . . . . 1 . . Propulsion 5 | 1 . . . . 3 1 . . Utility 5 | 1 2 . . . . 1 1 . Weapon 3 | 2 . 1 . . . . . . Parts Attached 96 | 6 25 . 2 1 25 22 4 11 Power 15 | 1 3 . . . 1 9 . 1 Engine 10 | 1 3 . . . 1 5 . . Core 5 | . . . . . . 4 . 1 Reactor . | . . . . . . . . . Propulsion 26 | 2 5 . . 1 12 2 . 4 Treads 13 | 1 3 . . . 7 . . 2 Leg . | . . . . . . . . . Wheel 13 | 1 2 . . 1 5 2 . 2 Hover . | . . . . . . . . . Flight . | . . . . . . . . . Utility 27 | . 9 . 1 . 7 5 2 3 Device 17 | . 5 . 1 . 6 4 1 . Storage 2 | . 1 . . . 1 . . . Processor 3 | . 1 . . . . . 1 1 Hackware . | . . . . . . . . . Protection 5 | . 2 . . . . 1 . 2 Artifact . | . . . . . . . . . Weapon 28 | 3 8 . 1 . 5 6 2 3 Energy Gun 7 | 1 4 . . . . 2 . . Energy Cannon 4 | . 2 . 1 . . . . 1 Ballistic Gun 6 | 2 2 . . . . 1 1 . Ballistic Cannon 8 | . . . . . 5 2 . 1 Launcher 1 | . . . . . . . 1 . Special Weapon . | . . . . . . . . . Impact Weapon . | . . . . . . . . . Slashing Weapon 2 | . . . . . . 1 . 1 Piercing Weapon . | . . . . . . . . . Special Melee Weapon . | . . . . . . . . . Unidentified Prototypes 4 | . . . . . . 4 . . Parts Lost . | . . . . . . . . . Power . | . . . . . . . . . Propulsion . | . . . . . . . . . Utility . | . . . . . . . . . Weapon . | . . . . . . . . . Highest Loss Streak . | . . . . . . . . . To Critical Strikes . | . . . . . . . . . Average Slot Usage (%) 90 | . 97 95 89 90 90 89 87 83 Engine 9 | . 11 9 9 9 7 8 11 7 Treads 14 | . 11 9 9 9 16 18 16 12 Wheel 11 | . 11 9 9 9 13 11 11 10 Device 20 | . 13 19 23 27 22 21 22 21 Storage 3 | . 2 9 9 9 7 5 . . Protection 4 | . 7 9 3 . . 1 5 5 Energy Gun 7 | . 23 19 12 9 1 . . . Energy Cannon 8 | . 11 9 14 18 8 5 5 4 Ballistic Gun 2 | . 1 . . . . 2 4 1 Ballistic Cannon 2 | . . . . . 11 6 . 3 Slashing Weapon 2 | . . . . . . 2 5 5 Naked Turns . | . . . . . . . . . Heaviest Build 63 | 7 18 18 38 38 51 63 58 62 Greatest Support 65 | 20 20 10 10 10 24 40 65 56 Greatest Overweight (x) 5 | 1 5 1 3 3 4 4 1 2 Average Overweight (x) 1 | . . 1 2 3 1 1 . 1 Largest Inventory Capacity 2 | 1 1 1 1 1 2 2 2 2 Average Capacity 1 | 1 1 1 1 1 1 2 2 2 Most Carried 2 | . 1 1 1 1 1 2 2 2 Average Carried 1 | . . 1 1 1 1 1 2 2 Final Capacity 2 | 1 1 1 1 1 2 2 2 2 Final Carried 2 | . 1 1 1 1 1 2 2 2 Class Distribution -------------------- 52% | Mutant 29% | Gunner 7% | Pyromaniac-Mutant 6% | Scavenger-Mutant 3% | Pyromaniac-Gunner Dominant Class ---------------- Gunner | -10/Materials Gunner | -10/Mines Pyromaniac-Gunner | -10/Exiles Pyromaniac-Mutant | -9/Mines Mutant | -8/Materials Mutant | -7/Factory Mutant | -7/Garrison Scavenger-Mutant | -7/Factory Resources | -11 -10 -10 -10 -9 -8 -7 -7 -7 ----------- Run | Jun Mat Min Exi Min Mat Fac Gar Fac Matter Collected 1584 | 178 516 60 . 16 323 233 107 151 Remotely . | . . . . . . . . . Salvage Created 6614 | . 479 264 94 37 1450 1392 1209 1689 Parts 263 | . 55 11 . 4 52 44 40 57 Haulers Intercepted 10 | . 2 . . . 3 3 . 2 Recyclers Shooed 5 | . 1 2 . . . 1 . 1 Parts Field Recycled . | . . . . . . . . . Retrieved Matter . | . . . . . . . . . Parts Self-Destructed . | . . . . . . . . . Prevented . | . . . . . . . . . Kills | -11 -10 -10 -10 -9 -8 -7 -7 -7 ------- Run | Jun Mat Min Exi Min Mat Fac Gar Fac Combat Hostiles Destroyed 126 | . 13 5 7 . 21 26 28 26 Melee 2 | . . . . . . . 1 1 Guns 13 | . 9 4 . . . . . . Cannons 17 | . 4 1 . . 3 2 6 1 AOE 57 | . . . 6 . 10 12 18 11 Classes Destroyed 19 | . 7 2 1 . 2 3 2 2 Worker 30 | . 3 1 . . 9 9 . 8 Builder 13 | . 3 1 . . 2 2 . 5 Tunneler 4 | . . 1 . 1 1 . . 1 Hauler 10 | . 2 . . . 3 3 . 2 Recycler 5 | . . 1 . . 3 . . 1 Mechanic 4 | . . . . . . 2 . 2 Operator 2 | . 1 . . . . 1 . . Watcher 8 | . 2 . . . 3 2 . 1 Swarmer 25 | . 9 3 . . . . 13 . Cutter 4 | . . . . . . . 4 . Grunt 59 | . 4 2 . . 15 20 6 12 Brawler 6 | . . . . . . 2 . 4 Duelist 2 | . . . . . . . . 2 Protector 1 | . . . . . . . . 1 Sentry 12 | . . . . . 3 2 2 5 Hunter 7 | . . . . . 3 1 2 1 Programmer 3 | . . . . . . 1 1 1 Assembled 7 | . . . 7 . . . . . Thug 1 | . . 1 . . . . . . Infiltrator 2 | . . . . . . . 2 . Best Kill Streak 30 | . 5 3 7 1 11 12 5 30 Combat Bots Only 11 | . 3 2 7 . 4 8 5 11 Max Kills in Single Turn 4 | . 2 1 3 1 4 4 4 4 Gunslinging . | . . . . . . . . . Exploded 3 | . . . 3 . 2 2 3 1 Melee 1 | . . . . . . . 1 1 Uniques/NPCs Destroyed . | . . . . . . . . . Combat | -11 -10 -10 -10 -9 -8 -7 -7 -7 -------- Run | Jun Mat Min Exi Min Mat Fac Gar Fac Damage Taken 5059 | . 219 59 659 39 387 568 1630 1498 Core 4094 | . 176 43 535 31 309 437 1278 1285 Absorbed by Shields . | . . . . . . . . . Redirected to Core 2602 | . 112 35 445 31 264 391 866 458 Redirected to Shielding 13 | . 8 5 . . . . . . Core Remaining (%) 66 | 100 . . . 14 86 . . . Volleys Fired 223 | . 36 24 12 4 33 31 49 34 Largest 3 | . 3 3 3 1 1 2 1 1 Hottest 360 | . 160 160 360 250 250 250 250 250 Shots Fired 348 | . 108 73 15 4 33 32 49 34 Gun 124 | . 72 49 2 . . . 1 . Cannon 223 | . 36 24 13 4 33 32 47 34 Launcher 1 | . . . . . . . 1 . Special . | . . . . . . . . . Kinetic 5 | . . . . . . 2 1 2 Thermal 342 | . 108 73 15 4 33 30 47 32 Explosive 1 | . . . . . . . 1 . Electromagnetic . | . . . . . . . . . Robot Hit Streak 15 | . 12 10 4 1 11 5 15 15 Robot Miss Streak 7 | . 4 3 4 3 6 7 4 5 Penetration Max . | . . . . . . . . . Secondary Targets . | . . . . . . . . . Shots Hit Robots 225 | . 58 44 10 1 29 24 32 27 Core Hits 334 | . 29 14 11 2 61 81 63 73 Critical Kills . | . . . . . . . . . Critical Parts Destroyed . | . . . . . . . . . Critical Strikes 6 | . 4 1 . . . . 1 . Burn 5 | . 4 1 . . . . . . Sever 1 | . . . . . . . 1 . Melee Attacks 21 | . . . . . . . 18 3 Impact . | . . . . . . . . . Slashing 21 | . . . . . . . 18 3 Piercing . | . . . . . . . . . Sneak Attacks 1 | . . . . . . . . 1 Combat Hostiles . | . . . . . . . . . Follow-up Attacks . | . . . . . . . . . Damage Inflicted 13027 | . 916 614 329 31 2157 3268 2434 3278 Guns 1079 | . 626 435 1 . . . 17 . Cannons 2984 | . 290 179 67 . 608 658 493 689 Explosions 8575 | . . . 261 31 1549 2600 1687 2447 Melee 379 | . . . . . . . 237 142 Ramming 10 | . . . . . . 10 . . Kinetic 76 | . . . . . . 59 17 . Thermal 12486 | . 916 614 329 31 2157 3199 2180 3060 Explosive . | . . . . . . . . . Electromagnetic 76 | . . . . . . . . 76 Impact . | . . . . . . . . . Slashing 379 | . . . . . . . 237 142 Piercing . | . . . . . . . . . Highest Corruption 1 | . 1 1 1 1 . . . . Average Corruption 1 | . 1 1 1 1 . . . . Corruption Purged . | . . . . . . . . . Corruption Blocked . | . . . . . . . . . Effects 10 | . . 3 3 4 . . . . Message Errors 2 | . . . 2 . . . . . Matter Fused 1 | . . 1 . . . . . . Heat Flow Errors 3 | . . 1 . 2 . . . . Energy Discharges 1 | . . . . 1 . . . . Data Loss (minor) 1 | . . . . 1 . . . . Data Loss (major) 1 | . . . 1 . . . . . Misfires 1 | . . 1 . . . . . . Overload Shots . | . . . . . . . . . Overflow Damage 237 | . . 15 17 . 16 112 33 44 Projectiles 19 | . . 15 . . . 4 . . Explosions 154 | . . . 17 . 16 108 3 10 Melee 64 | . . . . . . . 30 34 Knockbacks 1 | . . . . . . 1 . . Impact . | . . . . . . . . . Kinetic 1 | . . . . . . 1 . . Secondary . | . . . . . . . . . Self-Inflicted Damage 1097 | . . . 20 39 109 281 487 161 Shots 103 | . . . 1 2 10 36 47 7 Rammed 1 | . . . . . . 1 . . Targets Rammed 1 | . . . . . . 1 . . Kicked . | . . . . . . . . . Crushed . | . . . . . . . . . Highest Temperature 1984 | . 384 170 382 191 309 459 1372 1984 Average Temperature 222 | . 101 32 181 98 116 158 275 627 Received Heat Transfer 636 | . 42 18 . . 99 123 159 195 Effects 97 | . 3 . . . . . 27 67 Shutdowns 30 | . . . . . . . 10 20 Energy Bleed 12 | . 2 . . . . . 2 8 Interference 14 | . . . . . . . 7 7 Matter Decay 6 | . . . . . . . 1 5 Short Circuit 3 | . . . . . . . 1 2 Damage (minor) 6 | . 1 . . . . . 3 2 Damage (major) 19 | . . . . . . . 1 18 Damage (core) 7 | . . . . . . . 2 5 Siege Activations . | . . . . . . . . . Robots Corrupted . | . . . . . . . . . Combat Hostiles . | . . . . . . . . . Parts Fried . | . . . . . . . . . Impact Corruptions . | . . . . . . . . . Robots Melted 43 | . . . 1 . 8 13 4 17 Combat Hostiles 37 | . . . 1 . 8 12 3 13 Parts Melted 222 | . 6 2 1 . 37 64 42 70 Heat Transferred 57630 | . 2664 1702 1878 320 11680 14590 10640 14156 Parts Sabotaged . | . . . . . . . . . Parts Stolen . | . . . . . . . . . Parts Stripped . | . . . . . . . . . Power Chain Reactions . | . . . . . . . . . Missiles Intercepted . | . . . . . . . . . Alert | -11 -10 -10 -10 -9 -8 -7 -7 -7 ------- Run | Jun Mat Min Exi Min Mat Fac Gar Fac Peak Influence 2080 | . 240 241 . 54 859 1064 2080 1973 Initial 1092 | . . 37 . . 20 352 744 1092 Average 704 | . 67 112 . 19 477 679 1398 1402 Maximum Alert Level 5 | . 1 1 . . 3 3 5 5 Low Security (%) 32 | 100 90 66 . 100 12 . . . Level 1 10 | . 9 33 . . 24 18 . . Level 2 10 | . . . . . 45 28 . . Level 3 18 | . . . . . 17 53 33 2 Level 4 14 | . . . . . . . 23 84 Level 5 12 | . . . . . . . 42 5 High Security . | . . . . . . . . 7 Max Security . | . . . . . . . . . Squads Dispatched 19 | . 1 . . . 5 6 . 7 Investigation 5 | . 1 . . . 2 1 . 1 Extermination 2 | . . . . . . 1 . 1 Reinforcement 5 | . . . . . 2 2 . 1 Assault 5 | . . . . . 1 1 . 3 Garrison 2 | . . . . . . 1 . 1 Intercept . | . . . . . . . . . Searches Triggered . | . . . . . . . . . Construction Impeded 3 | . . . . . 1 1 . 1 Haulers Reinforced . | . . . . . . . . . Active Scanning Responses . | . . . . . . . . . Cargo Convoy Interrupts . | . . . . . . . . . Stealth | -11 -10 -10 -10 -9 -8 -7 -7 -7 --------- Run | Jun Mat Min Exi Min Mat Fac Gar Fac Distress Signals 6 | . . 1 . . 2 3 . . Communications Jammed . | . . . . . . . . . Distress Signals . | . . . . . . . . . Times Spotted 155 | . 19 6 7 . 30 34 27 32 Peak Tracking Total 9 | . 3 3 9 . 4 5 5 7 Tactical Retreats 2 | . . 1 . . . . 1 . Traps | -11 -10 -10 -10 -9 -8 -7 -7 -7 ------- Run | Jun Mat Min Exi Min Mat Fac Gar Fac Traps Triggered 19 | . 8 . . . 5 . 6 . Indirectly . | . . . . . . . . . Trap Hack Attempts . | . . . . . . . . . Triggered . | . . . . . . . . . Disarmed . | . . . . . . . . . Reprogrammed 6 | . 6 . . . . . . . Reused . | . . . . . . . . . Traps Reconfigurated 26 | . . . . . 1 1 24 . Traps Extracted . | . . . . . . . . . Installed 16 | . . . . . . . 16 . Triggered . | . . . . . . . . . Machines | -11 -10 -10 -10 -9 -8 -7 -7 -7 ---------- Run | Jun Mat Min Exi Min Mat Fac Gar Fac Machines Disabled 45 | . . 2 3 2 7 6 12 13 Max in Single Turn 4 | . . 2 1 1 2 4 2 4 Garrison Access 1 | . . . . . . . . 1 Garrison Relay 4 | . . . . . . . 4 . Phase Generator 1 | . . . . . . . 1 . Machines Repaired . | . . . . . . . . . Machines Sabotaged . | . . . . . . . . . Overloaded Fab Kills . | . . . . . . . . . Hacking | -11 -10 -10 -10 -9 -8 -7 -7 -7 --------- Run | Jun Mat Min Exi Min Mat Fac Gar Fac Machines Accessed 21 | . 6 1 1 . 5 4 2 2 Terminals 16 | . 6 1 . . 5 2 2 . Fabricators . | . . . . . . . . . Repair Stations . | . . . . . . . . . Recycling Units . | . . . . . . . . . Scanalyzers 2 | . . . . . . 1 . 1 Garrison Access 2 | . . . . . . 1 . 1 Total Hacks 54 | . 18 5 1 . 13 8 4 5 Successful 24 | . 8 1 1 . 6 3 1 4 Failed 30 | . 10 4 . . 7 5 3 1 Catastrophic 2 | . 2 . . . . . . . Database Lockouts . | . . . . . . . . . Manual 20 | . 5 5 1 . 8 1 . . Terminals 43 | . 18 5 . . 13 3 4 . Fabricators . | . . . . . . . . . Repair Stations . | . . . . . . . . . Recycling Units . | . . . . . . . . . Scanalyzers 7 | . . . . . . 3 . 4 Garrison Access 3 | . . . . . . 2 . 1 Terminal Hacks 19 | . 8 1 1 . 6 2 1 . Robot Analysis 4 | . 2 . . . 2 . . . Prototype ID Bank 1 | . . . . . 1 . . . Open DSF 1 | . . . . . . 1 . . Emergency Access Points 1 | . . . . . . . 1 . Unreport Threat 2 | . 2 . . . . . . . Locate Traps 7 | . 3 . . . 3 1 . . Reprogram Traps 1 | . 1 . . . . . . . Zone Layout 1 | . . 1 . . . . . . EX-Prototype ID Bank 1 | . . . 1 . . . . . Fabricator Hacks . | . . . . . . . . . Repair Station Hacks . | . . . . . . . . . Recycling Unit Hacks . | . . . . . . . . . Scanalyzer 3 | . . . . . . . . 3 Insert Component 1 | . . . . . . . . 1 Analyze 2 | . . . . . . . . 2 Garrison Access Hacks 2 | . . . . . . 1 . 1 Unlock Access 1 | . . . . . . 1 . . Seal Access 1 | . . . . . . . . 1 Unauthorized Hacks . | . . . . . . . . . Terminals . | . . . . . . . . . Fabricators . | . . . . . . . . . Repair Stations . | . . . . . . . . . Recycling Units . | . . . . . . . . . Scanalyzers . | . . . . . . . . . Garrison Access . | . . . . . . . . . Data Cores Recovered . | . . . . . . . . . Used . | . . . . . . . . . Hacking Detections 19 | . 6 1 . . 5 4 2 1 Full Trace Events 7 | . 2 1 . . 1 1 1 1 Feedback Events . | . . . . . . . . . Feedback Blocked . | . . . . . . . . . Robot Schematics Acquired . | . . . . . . . . . Robots Built . | . . . . . . . . . Authchips . | . . . . . . . . . Time . | . . . . . . . . . Total Robot Build Rating . | . . . . . . . . . Part Schematics Acquired 1 | . . . . . . . . 1 Parts Built . | . . . . . . . . . Authchips . | . . . . . . . . . Time . | . . . . . . . . . Total Part Build Rating . | . . . . . . . . . Parts Repaired . | . . . . . . . . . Time . | . . . . . . . . . Parts Recycled . | . . . . . . . . . Recycled Matter . | . . . . . . . . . Retrieved Matter . | . . . . . . . . . Retrieved Components . | . . . . . . . . . Parts Scanalyzed 1 | . . . . . . . . 1 Part Schematics Acquired 1 | . . . . . . . . 1 Parts Damaged . | . . . . . . . . . Bothacking | -11 -10 -10 -10 -9 -8 -7 -7 -7 ------------ Run | Jun Mat Min Exi Min Mat Fac Gar Fac Used RIF Installer 1 | . . . . . . . 1 . Robots Hacked . | . . . . . . . . . Non-combat . | . . . . . . . . . Combat . | . . . . . . . . . Robot Hacks Applied . | . . . . . . . . . Relay Couplers Released 7 | . . . . . . . 7 . Machine Destruction 7 | . . . . . . . 7 . Fabnet Peak Effective % . | . . . . . . . . . Robots Rewired . | . . . . . . . . . Allies Hacked . | . . . . . . . . . Hacks Repelled . | . . . . . . . . . Allies | -11 -10 -10 -10 -9 -8 -7 -7 -7 -------- Run | Jun Mat Min Exi Min Mat Fac Gar Fac Total Allies 4 | . . . . 2 . . 2 . Largest Group 2 | . . . . 2 2 . 2 . Highest-Rated Group 124 | . . . . 41 41 . 124 . Highest-Rated Ally 62 | . . . . 31 31 . 62 . Total Orders . | . . . . . . . . . Ally Attacks 12 | . . . . . 8 . 4 . Total Damage 354 | . . . . . 106 . 248 . Kills 4 | . . . . . 2 . 2 . Allies Corrupted . | . . . . . . . . . Allies Melted 1 | . . . . . . . 1 . Intel | -11 -10 -10 -10 -9 -8 -7 -7 -7 ------- Run | Jun Mat Min Exi Min Mat Fac Gar Fac Robot Analysis Total 4 | . 2 . . . 2 . . . Derelict Logs Recovered 1 | . . . . 1 . . . . Drone Launches . | . . . . . . . . . Drone Recoveries . | . . . . . . . . . Exploration | -11 -10 -10 -10 -9 -8 -7 -7 -7 ------------- Run | Jun Mat Min Exi Min Mat Fac Gar Fac Turns Passed 5597 | 30 1069 479 324 273 848 587 1460 527 Spaces Moved 3759 | 26 726 406 244 205 600 388 840 324 Core 10 | 7 3 . . . . . . . Treads 530 | 1 291 . . . 3 . 235 . Legs . | . . . . . . . . . Wheels 3219 | 18 432 406 244 205 597 388 605 324 Hover . | . . . . . . . . . Flight . | . . . . . . . . . Fastest Speed 50 | 50 80 95 95 125 105 110 110 100 Average Speed 116 | 80 120 95 110 125 116 113 123 116 Slowest Speed 330 | 160 300 95 125 125 330 150 158 130 Overloaded Moves . | . . . . . . . . . Propulsion Burnouts . | . . . . . . . . . Robots Hopped . | . . . . . . . . . Cave-ins Triggered . | . . . . . . . . . Exploration Rate (%) 46 | 3 97 56 41 50 55 11 96 12 Regions Visited 8 Branch Regions 3 Pre-discovered Areas 1 | . . . . 1 . . . . Known Exits Taken 1 | . . . . . . 1 . . Unknown Exits Taken 6 | 1 1 1 1 1 1 . . . Scrap Searched . | . . . . . . . . . Spaces Dug 14 | . . . . 14 . . . . Terrain Destroyed 525 | . . 18 61 26 196 28 68 128 Melee . | . . . . . . . . . Projectile 32 | . . . 8 2 15 . . 7 AOE 493 | . . 18 53 24 181 28 68 121 Terrain Rammed . | . . . . . . . . . Walls Destroyed . | . . . . . . . . . Machines Disabled . | . . . . . . . . . Actions | -11 -10 -10 -10 -9 -8 -7 -7 -7 --------- Run | Jun Mat Min Exi Min Mat Fac Gar Fac Total 4652 | 31 834 445 283 218 711 504 1187 439 Wait 282 | . 16 7 22 8 6 17 190 16 Move 3750 | 25 725 405 243 204 599 387 838 324 Hop . | . . . . . . . . . Pick Up 6 | . 3 . . . . 3 . . Fast Attach 74 | 6 22 . 2 . 17 17 4 6 Attach 3 | . 1 . . . . 2 . . Detach 4 | . 1 . . . . 2 . 1 Swap 19 | . 2 . . 1 8 3 . 5 Drop 57 | . 9 . 2 1 13 19 2 11 Fire 223 | . 36 24 12 4 33 31 49 34 Melee 21 | . . . . . . . 18 3 Ram 1 | . . . . . . 1 . . Kick . | . . . . . . . . . Crush . | . . . . . . . . . Escape Stasis 32 | . . . . . . . 32 . Rewire . | . . . . . . . . . Trap 16 | . . . . . . . 16 . Miscellaneous 164 | . 19 9 2 . 35 22 38 39 Route ------- -11/Junkyard -10/Materials (discovered 4 exits: [*Mat x3] / *Min) -10/Mines (discovered 3 exits: [*Mat x2] / *Exi) -10/Exiles -9/Mines -8/Materials -7/Factory (discovered 2 exits: [*Fac] / Gar) -7/Garrison (discovered 3 exits: *Fac x3) -7/Factory (discovered 1 exit: [*Fac]) History --------- Turn | Location | Event 1 | -11/Junkyard | Upgraded with Propulsion slot (x1) 1 | -11/Junkyard | Upgraded with Utility slot (x1) 1 | -11/Junkyard | Upgraded with Weapon slot (x2) 16 | -11/Junkyard | Discovered new exit (range 16) 31 | -11/Junkyard | Entered Materials 220 | -10/Materials | Discovered new exit (range 9) 409 | -10/Materials | Discovered new exit (range 15) 593 | -10/Materials | Build established: Gunner 598 | -10/Materials | Discovered new exit (range 12) 880 | -10/Materials | Discovered new exit (range 3) 1003 | -10/Materials | Reached level 2 1008 | -10/Materials | Upgraded with Utility slot (x2) 1100 | -10/Materials | Entered Mines 1123 | -10/Mines | Discovered new exit (range 12) 1133 | -10/Mines | Met a Derelict bent on vengeance 1158 | -10/Mines | Deemed a non-threat by the Exiles lab entrance 1158 | -10/Mines | Discovered new exit (range 5) 1357 | -10/Mines | Discovered new exit (range 7) 1372 | -10/Mines | Reached level 3 1384 | -10/Mines | Upgraded with Weapon slot (x1) 1477 | -10/Mines | Assembled infested the area 1579 | -10/Mines | Entered Exiles 1602 | -10/Exiles | Met 8R-AWN 1619 | -10/Exiles | Met EX-HEX 1644 | -10/Exiles | Met EX-BIN 1656 | -10/Exiles | Aligned with FarCom system 1657 | -10/Exiles | Given EX-Vault access code 1679 | -10/Exiles | Opened EX-Vault 1690 | -10/Exiles | Found Firepult 1693 | -10/Exiles | Attacked by the Exiles 1709 | -10/Exiles | Found Trap Reconfigurator 1747 | -10/Exiles | Destroyed 7 combat bots 1793 | -10/Exiles | Core integrity fell below 50% 1875 | -10/Exiles | Core integrity fell below 20% 1885 | -10/Exiles | Discovered new exit (range 14) 1903 | -10/Exiles | Stole two prototypes: Firepult, Trap Reconfigurator 1903 | -10/Exiles | Entered Mines 1910 | -9/Mines | Learned location of Storage (-9) 1914 | -9/Mines | Received a Rocket Launcher from a helpful Derelict 2156 | -9/Mines | Discovered new exit (range 15) 2176 | -9/Mines | Entered Materials 2176 | -8/Materials | Accompanied by 2 allies 2177 | -8/Materials | Core integrity fell below 50% 2177 | -8/Materials | Core integrity fell below 20% 2178 | -8/Materials | Reached level 4 2181 | -8/Materials | Led the pair of lost Derelicts to an unsafe place 2184 | -8/Materials | Upgraded with Propulsion slot (x1) 2273 | -8/Materials | Reached level 5 2277 | -8/Materials | Upgraded with Propulsion slot (x1) 2298 | -8/Materials | Build established: Pyromaniac-Mutant 2580 | -8/Materials | Reached level 6 2614 | -8/Materials | Build established: Mutant 2648 | -8/Materials | Upgraded with Propulsion slot (x1) 2712 | -8/Materials | Discovered new exit (range 15) 2940 | -8/Materials | Reached level 7 2976 | -8/Materials | First assault squad dispatched 3024 | -8/Materials | Entered Factory 3026 | -7/Factory | Reached level 8 3059 | -7/Factory | Identified exit to DSF 3139 | -7/Factory | Reached level 9 3156 | -7/Factory | Upgraded with Power slot (x1) 3218 | -7/Factory | Upgraded with Propulsion slot (x1) 3224 | -7/Factory | Upgraded with Utility slot (x1) 3264 | -7/Factory | Discovered new exit (range 6) 3424 | -7/Factory | First assault squad dispatched 3473 | -7/Factory | Garrison activated, responded to threat 3481 | -7/Factory | Reached level 10 3507 | -7/Factory | Destroyed 8 combat bots 3610 | -7/Factory | Identified exit to Garrison 3611 | -7/Factory | Entered Garrison 3611 | -7/Garrison | Reached level 11 3632 | -7/Garrison | Installed Relay Interface Framework 3780 | -7/Garrison | Triggered checkpoint 3805 | -7/Garrison | Triggered checkpoint 3854 | -7/Garrison | Triggered checkpoint 3899 | -7/Garrison | Reached level 12 4082 | -7/Garrison | Discovered new exit (range 12) 4122 | -7/Garrison | Triggered checkpoint 4157 | -7/Garrison | Garrison Relay disabled 4228 | -7/Garrison | Triggered checkpoint 4228 | -7/Garrison | Reached level 13 4262 | -7/Garrison | Triggered checkpoint 4282 | -7/Garrison | Garrison Relay disabled 4318 | -7/Garrison | Discovered new exit (range 15) 4402 | -7/Garrison | Phase Generator disabled 4450 | -7/Garrison | Reached level 14 4500 | -7/Garrison | Upgraded with Utility slot (x1) 4566 | -7/Garrison | Discovered new exit (range 14) 4632 | -7/Garrison | Triggered checkpoint 4684 | -7/Garrison | Found embedded Infiltrators 4795 | -7/Garrison | Garrison Relay disabled 4828 | -7/Garrison | Triggered checkpoint 4869 | -7/Garrison | Core integrity fell below 50% 5071 | -7/Garrison | Entered Factory 5184 | -7/Factory | Reached level 15 5292 | -7/Factory | Build established: Scavenger-Mutant 5471 | -7/Factory | First assault squad dispatched 5525 | -7/Factory | Discovered new exit (range 16) 5552 | -7/Factory | Reached level 16 5557 | -7/Factory | High security lockdown imminent 5589 | -7/Factory | Core integrity fell below 20% 5595 | -7/Factory | Destroyed 11 combat bots 5599 | -7/Factory | Core destroyed Last Messages --------------- 05595_ Com. Wheel melted. 05595_ Hcp. Battery melted. 05595_ Com. Wheel melted. 05595_ Imp. Deuterium Engine melted. 05595_ I-36 Angel destroyed. 05595_ A-02 Transporter critical meltdown. 05595_ Ion Engine melted. 05595_ B-48 Gladiator overheating. 05596_ Power failure, Enh. Nuclear Core shutdown. 05596_ Overheating: Adv. Assault Cannon damaged (-11). 05596_ W-25 Informer heat damages Imp. Signal Interpreter. 05596_ W-25 Informer critical meltdown. 05596_ Visual Processing Unit melted. 05596_ Imp. Hover Unit melted. 05596_ B-48 Gladiator overheating. 05597_ G-47 Trooper destroyed. 05597_ Melted Lgt. Treads. 05597_ B-48 Gladiator critical meltdown. 05598_ Overheating: Matter decay (-27). 05599_ Overheating: Core damaged (-171). Map ----- +----------------------------------------------------+ | ????????????????????? ? ? # """" "?"? ## | | ??????????????????#?##+?#### # ? ## | | ????????????????????? ## ###########?##? | | ???????????????? ?? ?# ##########?##? | | ??????????????????"?"""" # ############## | | ??????????????????? """" # | | ??????????????????" """" # | | ???????????????"??" """" % | | ??????????????? # | | ?????????????#????" """" # % | | ??????????? #? """" """" # ##########+### | | ???????""" ?#?"""" """" # ##########%! | | ????#?"?"" ?#? ?""" """" ###% ############"S | | ????? "?"? ## ### ! # ###""" | | ????# ???"??##?############## *%= # ### "" | | ??? ?? ?#################* ### | | ??" # ?? ? ############### #% ! # ### | | ???#######################*# %%* # ### | | ?# ############# %%*! # ### ] | | #+### = r = [ %%# ### ] | | %=% * %*= # ### ] | | *!= % %***= # ### | | %